[Event "Romanian Superleague 2022"]
[Site "Oradea"]
[Date "2022.09.23"]
[Round "3.9"]
[White "Rogozenco, Dorian"]
[Black "Voiteanu, Gabriel"]
[Result "1-0"]
[ECO "D23"]
[WhiteElo "2438"]
[BlackElo "2154"]
[Annotator "TA"]
[PlyCount "61"]
[EventDate "2022.09.21"]
[EventType "team-tourn"]
[EventCountry "ROU"]
[SourceTitle "playchess.com"]
[Source "ChessBase"]
[SourceQuality "1"]
[TimeControl "40/5400+30:1800+30"]

{[%evp 10,61,0,5,9,9,11,0,10,0,0,0,6,18,15,0,32,27,27,22,39,40,33,43,108,107,97,116,263,270,255,266,259,263,258,254,250,252,279,279,278,274,293,280,293,287,339,332,390,386,791,784,1293,1254]} 1. d4 {[%emt 0:00:06]} d5 {[%emt 0:00:12]} 2. c4 {[%emt 0:00:06]} c6 {[%emt 0:00:08]} 3. Nf3 {[%emt 0:00:07]} Nf6 {[%emt 0:00:09]} 4. Qc2 {[%emt 0:00:06]} dxc4 {[%emt 0:00:17]} 5. Qxc4 {[%emt 0:00:08]} Bg4 {[%emt 0:00:24]} 6. Nbd2 {[%emt 0:00:53][%cal Bb1d2,Bd2c4,Bc4e5][%mdl 32]} e6 {[%emt 0:03:57] D23: Queen's Gambit Accepted: 3 Nf3 Nf6 sidelines.} 7. g3 {[%emt 0:04:11]} Be7 {[%emt 0:06:37]} 8. Bg2 {[%emt 0:00:17]} Nbd7 {[%emt 0:02:12] The position is equal.} 9. O-O {[%emt 0:01:24]} O-O {[%emt 0:01:20]} 10. Qb3 {[%emt 0:11:10]} Qb6 {[%emt 0:04:02]} 11. Nc4 {[%emt 0:00:20]} Qa6 {[%emt 0:03:40]} 12. Re1 {[%emt 0:09:22]} Nb6 {[%emt 0:10:19]} 13. Nce5 {[%emt 0:17:31]} Bf5 {[%emt 0:13:14]} 14. a4 {[%emt 0:08:00] [#]} Qa5 $146 {[%emt 0:09:14]} ({Predecessor:} 14... Be4 15. Bf1 Qa5 16. Bd2 Qd5 17. Qe3 h6 18. Bc3 a5 19. Nd2 Bh7 20. Bg2 Qd8 {1-0 (45) Zubov,A (2598)-Goryachkina,A (2610) Chess.com INT 2021}) 15. Nd2 {[%emt 0:10:03]} Be4 {[%emt 0:07:32]} 16. f3 {[%emt 0:11:07]} Bd5 {[%emt 0:07:04]} (16... Bg6 $14) 17. Qd1 $16 {[%emt 0:04:44]} Qb4 {[%emt 0:14:36] [#]} 18. e3 {[%emt 0:02:18]} Bc4 {[%emt 0:07:35] A mistake that costs the game.} (18... Nc4 $16) 19. a5 $18 {[%emt 0:03:40]} ({Not} 19. Nexc4 Nxc4 20. Nxc4 Qxc4 $14) 19... Bb5 {[%emt 0:00:27]} 20. axb6 {[%emt 0:01:01]} axb6 {[%emt 0:00:02]} 21. Rxa8 {[%emt 0:00:06]} Rxa8 {[%emt 0:00:01]} 22. Bf1 {[%emt 0:02:30]} Bxf1 {[%emt 0:02:52]} 23. Nxf1 {[%emt 0:02:11]} Ra2 {[%emt 0:01:13]} 24. Nd2 {[%emt 0:01:50][%cal Bf1d2,Bd2e4,Be4f2][%mdl 32]} Nd5 {[%emt 0:00:40]} 25. Nd3 {[%emt 0:01:46]} Qa5 {[%emt 0:01:03]} 26. Ne4 {[%emt 0:01:09]} Ra1 {[%emt 0:00:41]} 27. Qc2 {[%emt 0:02:03]} f5 {[%emt 0:02:27]} 28. Nef2 {[%emt 0:01:24]} Bb4 {[%emt 0:01:32]} 29. Rd1 {[%emt 0:00:50] [#] Black must now prevent e4.} Qa2 $2 {[%emt 0:00:43]} (29... Bd6 30. e4 Nc7) 30. e4 {[%emt 0:01:02]} Nc3 {[%emt 0:00:21]} 31. Nxb4 {[%emt 0:00:22] Weighted Error Value: White=0.02 (flawless) /Black=0.23 (precise)} 1-0

[Event "Romanian Superleague 2022"]
[Site "Oradea"]
[Date "2022.09.23"]
[Round "3.10"]
[White "Oprisor, Razvan-Gabriel"]
[Black "Manolache, Marius"]
[Result "0-1"]
[ECO "B23"]
[WhiteElo "2175"]
[BlackElo "2455"]
[Annotator "TA"]
[PlyCount "110"]
[EventDate "2022.09.21"]
[EventType "team-tourn"]
[EventCountry "ROU"]
[SourceTitle "playchess.com"]
[Source "ChessBase"]
[SourceQuality "1"]
[TimeControl "40/5400+30:1800+30"]

{[%evp 16,110,16,0,7,0,12,9,18,0,32,0,25,0,2,0,7,0,0,-23,-8,-23,-8,-12,-20,-22,-29,-46,-46,-65,-63,-63,-52,-51,-41,-75,-63,-67,-61,-77,-70,-108,-97,-115,-115,-127,-94,-115,-108,-105,-64,-64,-64,-88,-90,-64,-44,-44,0,-47,-57,-52,-53,-125,-112,-111,-108,-112,-114,-64,-29,-118,-118,-106,0,-610,-609,-609,-602,-577,-599,-591,-585,-585,-568,-494,-671,-689,-655,-661,-406,-532,-545,-658,-630,-568,-559]} 1. e4 {[%emt 0:00:06]} c5 {[%emt 0:00:07]} 2. Nc3 {[%emt 0:00:40]} Nc6 {[%emt 0:00:12]} 3. f4 {[%emt 0:00:37]} g6 {[%emt 0:01:04]} 4. Nf3 {[%emt 0:01:28]} Bg7 {[%emt 0:00:11]} 5. Bb5 {[%emt 0:01:23]} Nd4 {[%emt 0:03:11]} 6. O-O {[%emt 0:02:44]} Nxb5 {[%emt 0:01:57]} 7. Nxb5 {[%emt 0:00:08]} d6 {[%emt 0:00:53]} 8. Nc3 {[%emt 0:02:40]} Nf6 {[%emt 0:00:54]} 9. d3 {[%emt 0:00:26]} O-O {[%emt 0:16:52] B23: Closed Sicilian: Lines without g3.} 10. Qe1 {[%emt 0:06:15]} d5 {[%emt 0:05:22]} 11. e5 {[%emt 0:11:15] [#]} Ne8 $146 {[%emt 0:02:31] The position is equal.} ({Predecessor:} 11... Ng4 12. h3 Nh6 13. Qf2 b6 14. d4 cxd4 15. Nxd4 e6 16. Be3 f6 17. exf6 Qxf6 {0-1 (34) Satici,A (2354)-Hoyos Millan,L (2475) ICCF email 2007}) 12. Qh4 {[%emt 0:05:36]} Nc7 {[%emt 0:02:06]} 13. Bd2 {[%emt 0:12:33]} (13. Ng5 $5 {[%cal Rh4h7]} h6 14. Nf3 $11) 13... f5 {[%emt 0:03:23]} 14. Ng5 {[%emt 0:07:46][%csl Gg5][%cal Rh4h7] [#]} (14. d4 $5 {[%cal Rd4c5]}) 14... h6 {[%emt 0:00:10]} 15. Nf3 {[%emt 0:00:13]} d4 {[%emt 0:00:51]} 16. Na4 {[%emt 0:01:25]} b6 {[%emt 0:02:55]} 17. b3 {[%emt 0:00:17]} Be6 {[%emt 0:06:38]} 18. Rae1 {[%emt 0:07:54]} Nd5 {[%emt 0:02:19]} 19. Qg3 {[%emt 0:01:35]} Bf7 {[%emt 0:04:49]} 20. Nh4 {[%emt 0:06:42]} Kh7 $1 {[%emt 0:00:18]} 21. Nb2 {[%emt 0:00:37]} b5 {[%emt 0:00:42] Prevents Nc4.} 22. a4 {[%emt 0:01:39]} a6 {[%emt 0:00:06]} 23. Ra1 {[%emt 0:03:19]} e6 {[%emt 0:02:09]} 24. Nf3 {[%emt 0:01:39][%cal Ob3b4]} Qd7 {[%emt 0:05:21]} 25. h3 {[%emt 0:07:23]} Rfc8 {[%emt 0:03:06]} 26. Kh2 {[%emt 0:01:08]} Bf8 {[%emt 0:00:33]} 27. Qf2 {[%emt 0:01:17]} Be7 {[%emt 0:00:38]} 28. h4 {[%emt 0:02:52]} Be8 {[%emt 0:03:05]} 29. Qe2 {[%emt 0:02:24]} Qd8 {[%emt 0:00:34]} 30. Rh1 {[%emt 0:00:31]} Kg7 {[%emt 0:07:52]} 31. Kg3 {[%emt 0:02:59]} Bc6 {[%emt 0:02:26]} 32. Kf2 {[%emt 0:00:40]} h5 {[%emt 0:00:54]} 33. Ng5 {[%emt 0:01:41]} Qd7 {[%emt 0:02:26]} 34. Kg3 {[%emt 0:01:02]} Bd8 {[%emt 0:01:43]} 35. Rhc1 {[%emt 0:01:46]} Bxg5 {[%emt 0:07:00]} 36. hxg5 {[%emt 0:00:16]} Nc3 {[%emt 0:00:25]} 37. Bxc3 {[%emt 0:02:26]} (37. Qf2 $11) 37... dxc3 $15 {[%emt 0:00:05]} 38. Nd1 {[%emt 0:00:05]} bxa4 {[%emt 0:03:13]} 39. Nxc3 {[%emt 0:02:29]} ({White should play} 39. bxa4 $15 Qd4 40. Qf2) 39... Qd4 $36 {[%emt 0:00:48][%mdl 2048] Black is in control.} 40. Qd2 {[%emt 0:00:00][%cal Rc3a4]} axb3 {[%emt 0:00:00] Dancing on a razor blade.} 41. cxb3 {[%emt 0:01:22]} Rab8 {[%emt 0:05:46][%cal Ba8b8,Bb8b4,Bb4c4][%mdl 32]} 42. Ra3 {[%emt 0:07:56]} Rb4 {[%emt 0:02:02]} (42... a5 $5) 43. Nd1 {[%emt 0:12:39]} (43. Kh2 $11 {keeps the balance.}) 43... h4+ {[%emt 0:04:50]} 44. Kh2 {[%emt 0:01:22] [#]} Bb5 {[%emt 0:00:18] Prevents Rc4. Black is much more active.} ({Reject} 44... Qxf4+ $6 45. Qxf4 Rxf4 46. Rxc5 $11) (44... h3 $1 $17 {[%cal Rh3g2]} 45. g3 Bb7) 45. Rc4 $2 {[%emt 0:04:19][%mdl 8192]} Bxc4 $19 {[%emt 0:00:32]} 46. bxc4 {[%emt 0:00:06]} Rxc4 {[%emt 0:06:05]} 47. Rxa6 {[%emt 0:00:40]} Qxf4+ {[%emt 0:00:07]} 48. Qxf4 {[%emt 0:00:06]} Rxf4 {[%emt 0:00:05][%mdl 4096] Endgame KRR-KRN} 49. Ne3 {[%emt 0:01:46]} Rd8 {[%emt 0:01:22]} 50. Nc4 {[%emt 0:07:18]} Rxd3 {[%emt 0:00:19]} 51. Ra7+ {[%emt 0:00:00]} Kf8 {[%emt 0:00:21]} 52. Nd6 {[%emt 0:00:00]} Rfd4 {[%emt 0:00:50]} 53. Rf7+ {[%emt 0:00:34]} Kg8 {[%emt 0:00:05] Hoping for ...Rxd6. Black is clearly winning.} 54. Rd7 {[%emt 0:00:44]} c4 {[%emt 0:00:27]} 55. Rd8+ {[%emt 0:00:30]} Kg7 {[%emt 0:00:08] Weighted Error Value: White=0.34/Black=0.17 (very precise)} 0-1

[Event "Romanian Superleague 2022"]
[Site "Oradea"]
[Date "2022.09.23"]
[Round "3.11"]
[White "Anton, Teodor"]
[Black "Ursente, Tudor-Alexandru"]
[Result "1-0"]
[ECO "E09"]
[WhiteElo "2454"]
[BlackElo "1931"]
[Annotator "TA"]
[PlyCount "79"]
[EventDate "2022.09.21"]
[EventType "team-tourn"]
[EventCountry "ROU"]
[SourceTitle "playchess.com"]
[Source "ChessBase"]
[SourceQuality "1"]
[TimeControl "40/5400+30:1800+30"]

{[%evp 23,79,29,35,30,43,46,52,57,69,21,20,20,39,26,44,20,80,64,104,17,54,0,16,27,108,0,168,142,296,35,235,190,183,135,94,34,263,250,258,268,308,300,345,337,421,421,421,421,719,672,1389,1378,2200,2139,2081,2037,2202,2170]} 1. d4 {[%emt 0:00:03]} Nf6 {[%emt 0:00:06]} 2. Nf3 {[%emt 0:00:10]} e6 {[%emt 0:00:03]} 3. c4 {[%emt 0:00:10]} d5 {[%emt 0:00:06]} 4. g3 {[%emt 0:00:13]} c6 {[%emt 0:04:08]} 5. Bg2 {[%emt 0:00:14]} Be7 {[%emt 0:00:04]} 6. O-O {[%emt 0:00:12]} O-O {[%emt 0:00:06]} 7. Nbd2 {[%emt 0:03:20]} Nbd7 {[%emt 0:00:24]} 8. Qc2 {[%emt 0:01:27]} b6 {[%emt 0:01:13]} 9. e4 {[%emt 0:01:28]} Bb7 {[%emt 0:08:05]} 10. e5 {[%emt 0:00:16]} Ne8 {[%emt 0:00:25]} 11. cxd5 {[%emt 0:00:09]} cxd5 {[%emt 0:02:38]} 12. Re1 {[%emt 0:00:25]} Rc8 {[%emt 0:01:39]} 13. Qd1 {[%emt 0:00:08] E09: Closed Catalan: Main Line: 7 Qc2 c6 8 Nbd2.} Nc7 {[%emt 0:07:34]} 14. Nf1 {[%emt 0:00:21]} a5 {[%emt 0:00:39]} 15. h4 {[%emt 0:00:41] White is slightly better.} Na6 {[%emt 0:07:37] [#]} 16. Bg5 $146 {[%emt 0:01:50]} (16. Ne3 $14) ({Predecessor:} 16. a3 Rc6 17. Bg5 h6 18. Bxe7 Qxe7 19. Qd2 Rfc8 20. Ne3 Nf8 21. Nh2 Nb8 22. f4 {0-1 (36) Kulon,K (2267)-Zawadzka,J (2383) Poland 2013}) 16... Nb4 {[%emt 0:08:35] Strongly threatening ...Nc2.} 17. Ne3 {[%emt 0:01:31] Against Nc2} Ba6 {[%emt 0:02:12]} 18. a3 {[%emt 0:00:30]} Nc6 {[%emt 0:01:09]} 19. Bh3 {[%emt 0:01:02]} h6 {[%emt 0:00:44]} (19... Re8 $11) 20. Bf4 $1 $16 {[%emt 0:02:53]} b5 {[%emt 0:01:19]} 21. Kg2 {[%emt 0:05:17]} (21. Ng4 $16) 21... Re8 {[%emt 0:01:31] [#]} (21... b4 {keeps more tension.} 22. Ng4 Kh7 23. Qd2 Rh8) 22. Ng4 {[%emt 0:02:57]} ({White should try} 22. Nxd5 $1 $14 exd5 23. e6 fxe6 24. Bxe6+ Kh8 25. Ng5) 22... h5 {[%emt 0:04:25]} 23. Ne3 {[%emt 0:00:31][%cal Oe3d5] Threatens to win with Nxd5!} b4 {[%emt 0:01:54] [#]} (23... Nf8 $11 {remains equal.}) 24. Ng5 {[%emt 0:04:35]} (24. Nxd5 $1 $16 {[%mdl 512]} bxa3 (24... Bb7 25. Ne3) 25. Nxe7+ Nxe7 26. Rxa3) 24... g6 $2 {[%emt 0:04:37]} (24... Bxg5 $11 25. hxg5 bxa3 26. Rxa3 Nf8) 25. Nxd5 {[%emt 0:01:29][%cal Oh3e6] Hoping for Bxe6!} Bf8 $2 {[%emt 0:03:05] [#]} (25... exd5 $2 26. Nxf7 $1 {[%mdl 512]} Qb6 27. Nh6+ (27. Bxd7 Kxf7 28. Rc1 Red8 $16) 27... Kh7 28. Bxd7 $18) (25... Nf8 $16) 26. Ne3 $2 {[%emt 0:13:48]} (26. Nxf7 $1 $18 {[%mdl 512]} Kxf7 27. Bg5) 26... Bb7 $2 {[%emt 0:05:56]} (26... Qb6 $1 $14) 27. Kh2 {[%emt 0:00:36]} Qb6 {[%emt 0:01:45]} 28. Bg2 {[%emt 0:01:22]} (28. Re2 $18) 28... Red8 {[%emt 0:11:45][%cal Od7e5]} 29. Nf3 {[%emt 0:03:06] White has more active pieces.} (29. d5 $16 Ncxe5 30. Nxf7 $1 Nxf7 31. dxe6) 29... Nxd4 $2 {[%emt 0:07:22]} 30. Nxd4 $18 {[%emt 0:04:01][%cal Bf3d4,Bd4c6,Bc6e7,Be7c8][%mdl 32]} (30. Qxd4 $6 Bc5 31. Qd1 Nxe5 $16) 30... Bxg2 {[%emt 0:00:22]} 31. Nxg2 {[%emt 0:00:33]} (31. Kxg2 Nb8 $11) 31... Nb8 {[%emt 0:00:06]} 32. Be3 {[%emt 0:01:15]} Bc5 {[%emt 0:00:28][%cal Rc5d4] [#]} 33. Rc1 $1 {[%emt 0:00:33]} Nc6 {[%emt 0:00:49] [#]} (33... Qa6 34. Qe2) 34. Nxc6 {[%emt 0:01:16] White is clearly winning.} ({Weaker is} 34. Rxc5 Qxc5 35. Nxc6 Qxc6 $16) 34... Rxd1 {[%emt 0:00:55]} 35. Ne7+ {[%emt 0:00:13][%mdl 64] Pin, Double Attack. Pair of Knights!} ({Not} 35. Bxc5 Rxc6 36. Bxb6 Rdxc1 37. Bxa5 Rxe1 38. Nxe1 bxa3 39. bxa3 Rc5 $16) 35... Kg7 {[%emt 0:02:15]} (35... Bxe7 $142 36. Rxc8+ (36. Bxb6 $2 {loses.} Rdxc1 37. Rxc1 Rxc1 $19) 36... Rd8) 36. Nxc8 {[%emt 0:00:08]} Qb8 {[%emt 0:05:24]} 37. Rxc5 {[%emt 0:02:21]} Rxe1 {[%emt 0:01:29]} 38. Nxe1 {[%emt 0:00:05]} bxa3 {[%emt 0:00:36]} 39. bxa3 {[%emt 0:00:03]} Qb1 {[%emt 0:00:11]} 40. Nc2 {[%emt 0:00:00] Weighted Error Value: White=0.31/Black=0.66} 1-0

[Event "Romanian Superleague 2022"]
[Site "Oradea"]
[Date "2022.09.23"]
[Round "3.12"]
[White "Gulie, Cosmin"]
[Black "Antal, Hunor-Zoltan"]
[Result "0-1"]
[ECO "B22"]
[WhiteElo "1973"]
[BlackElo "2235"]
[Annotator "TA"]
[PlyCount "66"]
[EventDate "2022.09.21"]
[EventType "team-tourn"]
[EventCountry "ROU"]
[SourceTitle "playchess.com"]
[Source "ChessBase"]
[SourceQuality "1"]
[TimeControl "40/5400+30:1800+30"]

{[%evp 12,66,-30,-31,-17,-4,-18,-16,-14,-17,-20,-29,-10,-53,-52,-68,-64,-62,-32,-60,-55,-57,-62,-63,-37,-34,-35,-81,-68,-101,-106,-120,-88,-105,-97,-107,-116,-202,-191,-179,-165,-223,-202,-273,-235,-275,-257,-520,-513,-540,-538,-465,-471,-546,-539,-740,-745]} 1. e4 {[%emt 0:00:06]} c5 {[%emt 0:00:28]} 2. c3 {[%emt 0:00:05]} Nf6 {[%emt 0:00:10]} 3. e5 {[%emt 0:00:28]} Nd5 {[%emt 0:00:12]} 4. g3 {[%emt 0:01:03]} d6 {[%emt 0:00:52]} 5. exd6 {[%emt 0:01:46]} Qxd6 {[%emt 0:00:14]} 6. Bg2 {[%emt 0:01:27]} Nc6 {[%emt 0:01:13]} 7. Ne2 {[%emt 0:02:01]} Bf5 {[%emt 0:09:41] has lost popularity (7...Bg4). B22: Sicilian: 2 c3.} 8. d4 $1 {[%emt 0:09:34]} cxd4 {[%emt 0:13:06]} 9. Nxd4 {[%emt 0:03:29]} Nxd4 {[%emt 0:03:19] The position is equal.} 10. Qxd4 {[%emt 0:02:01]} Qe6+ {[%emt 0:01:26]} 11. Be3 {[%emt 0:01:32]} Nxe3 {[%emt 0:05:08]} 12. Qxe3 {[%emt 0:00:09]} (12. fxe3 {keeps more tension.} Rd8 13. Qxa7 Bd3 14. c4) 12... Qxe3+ {[%emt 0:00:54]} 13. fxe3 {[%emt 0:00:05]} O-O-O {[%emt 0:00:49]} 14. Nd2 {[%emt 0:01:56]} e5 {[%emt 0:06:13]} (14... g6 $5 {[%cal Rf8h6]}) 15. O-O-O {[%emt 0:03:19]} Bc5 {[%emt 0:02:35]} 16. e4 {[%emt 0:00:07]} Be6 {[%emt 0:01:34]} 17. Kc2 {[%emt 0:03:07] [#]} h5 $146 {[%emt 0:03:15] Black is much more active.} (17... Bxa2 $2 18. b3 $18) ({Predecessor:} 17... f6 18. a3 Be3 {½-½ (18) Zawadzki,S (2192)-Stojanovic,D (2241) Litohoto 1999}) 18. Nf3 {[%emt 0:01:43]} f6 {[%emt 0:00:02]} 19. b3 {[%emt 0:00:37]} (19. b4 $15 Bb6 20. Nh4) 19... g5 $17 {[%emt 0:00:51][%cal Bg7g5,Bg5g4][%mdl 32]} 20. Rxd8+ {[%emt 0:00:05]} Kxd8 {[%emt 0:01:17]} 21. a4 {[%emt 0:03:43]} h4 {[%emt 0:01:17]} 22. gxh4 {[%emt 0:01:50]} g4 {[%emt 0:02:00][%mdl 64] [#] Deflection} 23. Nd2 {[%emt 0:00:45]} Rxh4 {[%emt 0:01:07]} 24. b4 {[%emt 0:00:39]} (24. Nf1 $17 {keeps fighting.}) 24... Be3 $19 {[%emt 0:00:42]} 25. Nf1 {[%emt 0:00:22]} Bf4 {[%emt 0:00:59]} 26. Ng3 {[%emt 0:00:43]} (26. Kd3 $142) 26... Kc7 {[%emt 0:00:04]} 27. a5 {[%emt 0:05:53]} Rh7 {[%emt 0:01:46]} 28. Nf1 {[%emt 0:01:32]} a6 {[%emt 0:01:13]} 29. Ng3 $2 {[%emt 0:00:35]} (29. Nd2 {was forced.}) 29... Rd7 {[%emt 0:00:14] [#] Hoping for ...Rd2+. Black is clearly winning.} 30. Nf1 {[%emt 0:00:17] Against Rd2+} Bc4 {[%emt 0:01:19]} 31. h4 {[%emt 0:01:20]} gxh3 {[%emt 0:03:08]} 32. Bxh3 {[%emt 0:02:32]} Bd3+ {[%emt 0:00:56] This bishop pair is nice.} 33. Kb3 {[%emt 0:00:28]} Rh7 {[%emt 0:00:13] Weighted Error Value: White=0.36/Black=0.06 (flawless)} 0-1

[Event "Romanian Superleague 2022"]
[Site "Oradea"]
[Date "2022.09.23"]
[Round "3.13"]
[White "Sumets, Andrey"]
[Black "Marin, Mihail"]
[Result "1-0"]
[ECO "B06"]
[WhiteElo "2513"]
[BlackElo "2457"]
[Annotator "TA"]
[PlyCount "75"]
[EventDate "2022.09.21"]
[EventType "team-tourn"]
[EventCountry "ROU"]
[SourceTitle "playchess.com"]
[Source "ChessBase"]
[SourceQuality "1"]
[TimeControl "40/5400+30:1800+30"]

{[%evp 10,75,89,78,57,87,68,75,60,70,97,83,95,97,98,103,92,94,133,130,135,135,208,122,253,196,206,207,200,195,201,202,251,236,229,208,217,216,198,202,210,212,211,208,256,232,267,209,308,236,231,228,222,204,369,369,366,312,601,583,961,883,1260,1255,1852,1842,1946,1868]} 1. d4 {[%emt 0:00:02]} g6 {[%emt 0:00:06]} 2. e4 {[%emt 0:00:32]} Bg7 {[%emt 0:00:05]} 3. Nf3 {[%emt 0:05:14]} d6 {[%emt 0:00:06]} 4. Bc4 {[%emt 0:00:44]} c5 {[%emt 0:03:32]} 5. dxc5 {[%emt 0:03:31]} Qa5+ {[%emt 0:03:28]} 6. c3 {[%emt 0:00:10]} Qxc5 {[%emt 0:00:15] B06: Modern Defence.} 7. Qb3 {[%emt 0:08:01] [#] Strongly threatening Be3.} e6 {[%emt 0:02:05]} 8. Be3 {[%emt 0:27:02]} Qc7 {[%emt 0:03:06] White is better.} 9. Na3 {[%emt 0:00:12] Nb5 is the strong threat.} a6 {[%emt 0:02:41] Inhibits Nb5.} 10. O-O-O {[%emt 0:03:24]} Nc6 {[%emt 0:06:53]} 11. Qb6 {[%emt 0:06:03]} Qxb6 {[%emt 0:06:42]} 12. Bxb6 {[%emt 0:00:13]} Nf6 {[%emt 0:00:08]} 13. Rhe1 {[%emt 0:00:57] [#]} Ke7 $146 {[%emt 0:02:05]} ({Predecessor:} 13... Bf8 14. Bc7 b5 15. Bb3 Ng4 16. Bxd6 Bh6+ 17. Kc2 Nxf2 18. Ra1 Ng4 19. Bc5 Bf8 20. Bxf8 Kxf8 {0-1 (42) Williams,A-Forintos,G Caorle 1972}) 14. Bb3 {[%emt 0:01:49]} Ne8 {[%emt 0:26:30]} 15. Nc4 $36 {[%emt 0:01:24][%mdl 2048] White is on the roll. White is much more active. The black rooks are badly placed.} a5 {[%emt 0:02:53]} (15... e5 $16 16. Nxd6 Nxd6) 16. Ba4 {[%emt 0:08:26]} (16. e5 $18 {[%cal Re5d6]} Nxe5 17. Ncxe5 (17. Nfxe5 a4 $18)) 16... f5 {[%emt 0:11:03] Black cannot hold the game after this.} (16... Bd7 $16 {was necessary.}) 17. Bxc6 {[%emt 0:06:38]} bxc6 {[%emt 0:00:06] [#]} 18. Nxd6 {[%emt 0:00:03][%mdl 512]} Nxd6 {[%emt 0:01:21]} 19. Bc5 {[%emt 0:00:08]} Rd8 {[%emt 0:04:12]} 20. e5 {[%emt 0:00:45][%cal Be4e5,Be5d6][%mdl 96] Pin} h6 {[%emt 0:01:00]} 21. exd6+ {[%emt 0:01:20]} Kf7 {[%emt 0:00:14]} 22. Bb6 {[%emt 0:05:16]} Rd7 {[%emt 0:00:10]} 23. Ne5+ {[%emt 0:01:04]} Bxe5 {[%emt 0:00:07]} 24. Rxe5 {[%emt 0:00:02]} a4 {[%emt 0:00:17]} 25. Bc7 {[%emt 0:01:37]} Kf6 {[%emt 0:06:32]} 26. Rc5 {[%emt 0:00:44]} Ra6 {[%emt 0:03:59]} 27. Rd4 {[%emt 0:03:26]} e5 {[%emt 0:02:47]} 28. Rdc4 {[%emt 0:01:21]} Ke6 {[%emt 0:00:56]} (28... Ra8 $142 29. Rb4 (29. Rxc6 Bb7 $16) 29... Rf7 30. Rxc6 (30. Bd8+ Ke6 $16) 30... Bd7) 29. Rxc6 {[%emt 0:04:54]} Rxc6 {[%emt 0:00:20]} 30. Rxc6 $18 {[%emt 0:00:04][%mdl 4096] Endgame KRB-KRB} Bb7 {[%emt 0:00:05]} 31. Rc4 {[%emt 0:00:03]} Bxg2 $2 {[%emt 0:00:32]} (31... a3 {was worth a try.} 32. g3 axb2+ 33. Kxb2 Rf7) 32. Rxa4 {[%emt 0:00:03]} f4 {[%emt 0:00:07]} 33. Kd2 {[%emt 0:03:08]} Kf5 $2 {[%emt 0:01:13]} (33... g5 34. c4 Rf7) 34. c4 {[%emt 0:00:27][%cal Bc3c4,Bc4c5,Bc5c6][%mdl 32] White is clearly winning.} Kg4 {[%emt 0:00:32]} 35. c5 {[%emt 0:00:42]} g5 {[%emt 0:05:43]} 36. b4 {[%emt 0:00:35][%cal Bb2b4,Bb4b5][%mdl 32]} Kh3 {[%emt 0:05:34]} 37. b5 {[%emt 0:00:17]} Kxh2 {[%emt 0:00:09]} 38. c6 {[%emt 0:00:19] Weighted Error Value: White=0.14 (very precise) /Black=0.47} 1-0

[Event "Romanian Superleague 2022"]
[Site "Oradea"]
[Date "2022.09.23"]
[Round "3.14"]
[White "Miron, Lucian-Costin"]
[Black "Cioara, Andrei-Nestor"]
[Result "1-0"]
[ECO "B01"]
[WhiteElo "2498"]
[BlackElo "2407"]
[Annotator "TA"]
[PlyCount "59"]
[EventDate "2022.09.21"]
[EventType "team-tourn"]
[EventCountry "ROU"]
[SourceTitle "playchess.com"]
[Source "ChessBase"]
[SourceQuality "1"]
[TimeControl "40/5400+30:1800+30"]

{[%evp 12,59,85,86,73,75,47,68,175,144,159,101,100,95,113,74,120,116,215,113,101,106,102,114,176,128,134,124,149,150,218,208,231,229,328,310,301,300,455,433,705,695,794,773,778,772,847,821,1610,1616]} 1. e4 {[%emt 0:00:13]} d5 {[%emt 0:05:26]} 2. exd5 {[%emt 0:00:19]} Qxd5 {[%emt 0:00:04]} 3. Nc3 {[%emt 0:00:08]} Qd8 {[%emt 0:04:03]} 4. d4 {[%emt 0:01:09]} c6 {[%emt 0:02:08]} 5. Bc4 {[%emt 0:03:04]} Nf6 {[%emt 0:19:14]} 6. Nf3 {[%emt 0:01:09]} Bf5 {[%emt 0:07:33]} 7. Ne5 {[%emt 0:09:13][%csl Ge5][%cal Rc4f7]} e6 {[%emt 0:00:12] B01: Scandinavian Defence.} 8. g4 $1 {[%emt 0:00:10]} Bg6 {[%emt 0:00:10]} 9. h4 {[%emt 0:00:46][%cal Bh2h4,Bh4h5][%mdl 32]} Be4 {[%emt 0:17:32]} ({Black should try} 9... Bb4 $14) 10. Nxe4 $18 {[%emt 0:32:28]} Nxe4 {[%emt 0:00:02] [#]} 11. c3 {[%emt 0:09:52]} (11. Nxf7 $142 $1 {[%mdl 512]} Kxf7 12. Qf3+ Nf6 13. g5 (13. Qf5 Qd6 $17)) 11... Nd6 $16 {[%emt 0:08:45]} 12. Bd3 {[%emt 0:01:45]} Nd7 {[%emt 0:00:24] [#]} 13. h5 $146 {[%emt 0:01:10] White is much more active. The black rooks are badly placed.} ({Predecessor:} 13. Qc2 Be7 14. Bf4 Bxh4 15. Nxc6 bxc6 16. Bxd6 Nb6 17. Be5 Bf6 18. Bg3 Nd5 19. O-O-O {1-0 (43) Halvax,G (2421)-Theuretzbacher,K (2254) Austria 2017}) 13... Qa5 {[%emt 0:06:28]} (13... Nxe5 $142 14. dxe5 Nb5) 14. Nxd7 {[%emt 0:13:16]} Qd5 {[%emt 0:02:58] [#]} (14... Kxd7 $16 15. Bf4 Be7) 15. Kd2 {[%emt 0:05:11]} Kxd7 {[%emt 0:00:43]} 16. Kc2 {[%emt 0:00:06]} Rd8 {[%emt 0:09:18]} 17. Re1 {[%emt 0:00:25]} Qa5 {[%emt 0:00:04]} (17... g6 $16) 18. Re5 {[%emt 0:00:51]} ({White should play} 18. a4 $18) 18... Qc7 {[%emt 0:00:14]} 19. Bf4 {[%emt 0:01:12]} Kc8 {[%emt 0:00:07]} 20. Qf3 {[%emt 0:08:31]} Be7 {[%emt 0:08:07]} (20... Qd7 $16 21. Rae1 Kb8) 21. b4 $18 {[%emt 0:00:14]} Qd7 {[%emt 0:05:27]} 22. a4 {[%emt 0:01:20] Black must now prevent b5.} f6 {[%emt 0:01:49]} (22... Kb8 $142 23. b5 Ka8 24. bxc6 bxc6) 23. Re3 {[%emt 0:02:42]} Rhe8 {[%emt 0:00:18]} 24. Bxh7 {[%emt 0:01:37]} Kb8 {[%emt 0:00:48]} (24... f5 $142 25. Rae1 Ne4 26. gxf5 exf5) 25. Bg6 {[%emt 0:01:43] White is clearly winning.} Rf8 {[%emt 0:00:05]} (25... Rh8 $142 26. Qe2 Bf8 27. Rxe6 Ka8) 26. Qe2 {[%emt 0:00:07]} e5 {[%emt 0:00:54]} 27. dxe5 {[%emt 0:00:35]} fxe5 {[%emt 0:00:04]} 28. Bxe5 {[%emt 0:00:09]} Ka8 {[%emt 0:00:56]} 29. Bxg7 {[%emt 0:01:41]} Rg8 {[%emt 0:00:36]} 30. Rxe7 {[%emt 0:00:13] Weighted Error Value: White=0.14 (very precise) /Black=0.49} 1-0